[Event "Bangabandhu Premier Div League 2023-24"]
[Site "Dhaka"]
[Date "2024.02.08"]
[Round "8.8"]
[White "Diya Chowdhury"]
[Black "Avik, Sarker"]
[Result "0-1"]
[ECO "C43"]
[WhiteElo "1881"]
[BlackElo "1914"]
[Annotator "TA"]
[PlyCount "102"]
[EventDate "2024.02.01"]
[EventCountry "BAN"]
[SourceTitle "playchess.com"]
[Source "ChessBase"]
[SourceQuality "1"]
[TimeControl "40/5400+30:1800+30"]

{[%evp 11,102,5,0,0,17,13,36,29,33,31,35,21,18,14,54,9,0,-10,22,-34,-14,-90,-85,-87,-81,-116,-110,-174,-115,-112,-106,-106,-96,-123,-105,-142,-131,-98,-98,-297,-295,-261,-291,-341,-297,-271,-210,-213,-196,-197,-217,-512,-490,-575,-587,-748,-774,-726,-693,-1158,-1157,-1264,-1182,-987,-935,-1395,-1468,-5497,-5114,-4802,-3236,-1339,-835,-1168,-797,-785,-771,-744,-735,-1476,-1102,-29986,-29987,-29987,-29988,-29988,-29989,-29992,-29992,-29993,-29993,-29993,-29994]} 1. e4 {[%emt 0:00:13]} e5 {[%emt 0:00:15]} 2. Nf3 {[%emt 0:00:08]} Nf6 {[%emt 0:00:05]} 3. d4 {[%emt 0:00:11]} Nxe4 {[%emt 0:00:06]} 4. Bd3 {[%emt 0:00:16]} d5 {[%emt 0:00:04]} 5. dxe5 {[%emt 0:00:11]} Be7 {[%emt 0:02:28]} 6. O-O {[%emt 0:00:19]} Nc5 {[%emt 0:03:23]} 7. Be2 {[%emt 0:00:13]} Bg4 {[%emt 0:02:46]} 8. Nc3 {[%emt 0:00:17]} c6 {[%emt 0:00:17]} 9. Nd4 {[%emt 0:00:26] White is slightly better.} Bxe2 {[%emt 0:01:21]} 10. Ncxe2 {[%emt 0:00:37]} Nbd7 {[%emt 0:01:43][%cal Bb8d7,Bd7c5,Bc5a4,Ba4b2][%mdl 32]} 11. f4 {[%emt 0:01:25]} Ne4 {[%emt 0:01:36]} 12. Be3 {[%emt 0:06:44][%cal Oc2c4]} Ndc5 {[%emt 0:04:31]} 13. Nf5 {[%emt 0:03:11]} g6 {[%emt 0:00:52]} 14. Nfd4 {[%emt 0:17:51]} f5 {[%emt 0:15:16]} 15. b4 {[%emt 0:09:50]} (15. c3 $11) 15... Na4 $1 $15 {[%emt 0:01:03]} 16. b5 {[%emt 0:03:46]} (16. a3 $11) 16... Nb2 $17 {[%emt 0:19:09]} 17. Qb1 {[%emt 0:08:22]} (17. Qc1 Nc4 18. bxc6 Ba3) 17... Nc4 {[%emt 0:00:33]} 18. bxc6 {[%emt 0:00:14]} bxc6 {[%emt 0:01:10]} ({Reject} 18... Nxe3 $6 19. cxb7 Rb8 20. Nc6 Nxf1 21. Nxd8 Bc5+ 22. Kh1 $11) 19. Qb7 {[%emt 0:02:44]} Qc8 {[%emt 0:01:01]} (19... Nxe3 $19 20. Nxc6 Nc5 21. Nxd8 Nxb7 22. Nxb7 Nxf1 23. Kxf1 Rb8) 20. Qxc8+ {[%emt 0:05:27]} Rxc8 {[%emt 0:00:37]} 21. Bf2 {[%emt 0:02:41]} Kd7 $36 {[%emt 0:06:46][%mdl 2048] Black has strong initiative.} 22. Nb3 {[%emt 0:05:26]} Ba3 {[%emt 0:02:45]} 23. Rad1 {[%emt 0:07:10]} a5 {[%emt 0:02:55]} 24. Bd4 {[%emt 0:06:27]} Ke6 {[%emt 0:01:04] And now ...a4 would win.} 25. Ng3 $2 {[%emt 0:00:32] This move loses the game for White.} (25. Rf3 $17) 25... c5 $19 {[%emt 0:02:16] Active counter play!} 26. Bf2 {[%emt 0:03:18]} a4 {[%emt 0:01:03]} 27. Nc1 {[%emt 0:00:13]} Nc3 {[%emt 0:08:18]} 28. Rd3 {[%emt 0:01:03]} Bxc1 {[%emt 0:01:43]} 29. Rxc1 {[%emt 0:00:58]} Nxa2 {[%emt 0:00:13] A dynamic duo of knights.} 30. Ra1 {[%emt 0:00:40]} Nb4 {[%emt 0:00:26][%csl LRc2,LRd3]} 31. Rxa4 $2 {[%emt 0:00:30]} (31. Rc3) 31... Nb2 {[%emt 0:06:09]} 32. Rxb4 {[%emt 0:04:58]} cxb4 {[%emt 0:00:17]} 33. Rb3 {[%emt 0:00:04]} Rxc2 {[%emt 0:00:46]} 34. Rxb4 {[%emt 0:00:08]} Nc4 {[%emt 0:02:40]} 35. h4 {[%emt 0:00:49]} Ra8 {[%emt 0:02:13] Dodges Ra4} 36. Nh1 {[%emt 0:01:35]} Ra1+ {[%emt 0:02:14]} 37. Kh2 {[%emt 0:00:01] [#]} Rxh1+ $1 {[%emt 0:00:13][%mdl 512]} 38. Kxh1 {[%emt 0:00:03]} Rxf2 {[%emt 0:00:10][%mdl 4096] Endgame. KRN-KR} 39. g3 {[%emt 0:00:11]} Ra2 {[%emt 0:02:53]} 40. Kg1 {[%emt 0:00:26]} h6 {[%emt 0:00:51] ...Rc2 would now be deadly.} 41. Rb8 {[%emt 0:31:02]} Ra7 {[%emt 0:31:57]} 42. Rg8 {[%emt 0:00:23]} Kf7 {[%emt 0:02:14]} 43. Rd8 {[%emt 0:00:27]} Ra5 {[%emt 0:02:06]} 44. Rd7+ {[%emt 0:00:21]} Ke8 {[%emt 0:00:00]} 45. Rg7 {[%emt 0:00:00]} d4 {[%emt 0:00:00] [#] ( -> ...d3)} 46. Rxg6 {[%emt 0:00:00]} d3 {[%emt 0:00:00] Black mates.} 47. Rg8+ {[%emt 0:00:00]} Kd7 {[%emt 0:00:00]} 48. Rg7+ {[%emt 0:00:00]} Kc6 {[%emt 0:00:00]} 49. Kf2 {[%emt 0:00:00]} d2 {[%emt 0:00:00]} 50. Ke2 {[%emt 0:00:00]} Ra1 {[%emt 0:00:00]} 51. Rg6+ {[%emt 0:00:00]} Kc5 {[%emt 0:00:00] Weighted Error Value: White=0.78/Black=0.38.  Loses game:     	White=1     	---        Mistake:       	White=4     	Black=1      Inaccurate:     	White=3     	Black=2      OK:         	White=8     	Black=11     Best:        	White=1     	Black=1      Strong:       	---       	Black=1} 0-1

[Event "Bangabandhu Premier Div League 2023-24"]
[Site "Dhaka"]
[Date "2024.02.08"]
[Round "8.9"]
[White "Hossain, Enamul"]
[Black "Islam, M.M. Zahirul"]
[Result "1-0"]
[ECO "A14"]
[WhiteElo "2372"]
[BlackElo "1876"]
[Annotator "RC"]
[PlyCount "99"]
[EventDate "2024.02.01"]
[EventCountry "BAN"]
[SourceTitle "playchess.com"]
[Source "ChessBase"]
[SourceQuality "1"]
[TimeControl "40/5400+30:1800+30"]

1. Nf3 {[%emt 0:03:55]} Nf6 {[%emt 0:00:16]} 2. c4 {[%emt 0:00:30]} e6 {[%emt 0:00:12]} 3. g3 {[%emt 0:01:06]} d5 {[%emt 0:01:09]} 4. Bg2 {[%emt 0:00:15]} Be7 {[%emt 1:30:53]} 5. O-O {[%emt 0:00:42]} O-O {[%emt 0:00:00]} 6. b3 {[%emt 0:01:05]} c5 {[%emt 0:00:00]} 7. Bb2 {[%emt 0:01:16]} Nc6 {[%emt 0:00:00]} 8. e3 {[%emt 0:01:59]} Qc7 {[%emt 0:00:00]} 9. Nc3 {[%emt 0:01:31]} a6 {[%emt 0:02:30]} 10. cxd5 {[%emt 0:02:47]} exd5 {[%emt 0:00:30]} 11. d4 {[%emt 1:20:54]} cxd4 {[%emt 0:00:00]} 12. Nxd4 {[%emt 0:00:00]} Rd8 {[%emt 0:00:00]} 13. Rc1 {[%emt 0:00:00]} Bg4 {[%emt 0:01:30]} 14. Qd2 {[%emt 0:00:00]} Qd7 {[%emt 0:00:00]} 15. Nxc6 {[%emt 0:00:00]} bxc6 {[%emt 0:00:00]} 16. Na4 {[%emt 0:02:30]} Rab8 {[%emt 0:00:00]} 17. Qc2 {[%emt 0:00:30]} Rdc8 {[%emt 0:00:00]} 18. Nc5 {[%emt 0:00:00]} Bxc5 {[%emt 0:00:00]} 19. Qxc5 {[%emt 0:00:00]} Bh3 {[%emt 0:00:00]} 20. Bxh3 {[%emt 0:00:00]} Qxh3 {[%emt 0:00:00]} 21. Bxf6 {[%emt 0:00:00]} gxf6 {[%emt 0:04:00]} 22. Rfd1 {[%emt 0:02:30]} Rb5 {[%emt 0:00:00]} 23. Qd4 {[%emt 0:00:00]} Qf5 {[%emt 0:00:00]} 24. Rd2 {[%emt 0:00:00]} a5 {[%emt 0:00:00]} 25. Rdc2 {[%emt 0:00:00]} c5 {[%emt 0:02:00]} 26. Qa4 {[%emt 0:00:00]} Rcb8 {[%emt 0:00:00]} 27. Rxc5 {[%emt 0:00:00]} Rxc5 {[%emt 0:00:00]} 28. Rxc5 {[%emt 0:00:00]} Qb1+ {[%emt 0:00:00]} 29. Kg2 {[%emt 0:00:00]} Rb4 {[%emt 0:00:00]} 30. Qe8+ {[%emt 0:00:00]} Kg7 {[%emt 0:00:00]} 31. Rxa5 {[%emt 0:00:00]} Re4 {[%emt 0:00:00]} 32. Qd7 {[%emt 0:00:00]} Re5 {[%emt 0:00:00]} 33. Ra4 {[%emt 0:00:00]} h5 {[%emt 0:00:00]} 34. h4 {[%emt 0:00:00]} Qc2 {[%emt 0:04:30]} 35. Ra7 {[%emt 0:00:00]} Qe4+ {[%emt 0:00:00]} 36. Kh2 {[%emt 0:00:00]} Qg6 {[%emt 0:00:00]} 37. a4 {[%emt 0:00:00]} Rf5 {[%emt 0:00:00]} 38. Kg1 {[%emt 0:08:00]} Re5 {[%emt 0:02:00]} 39. a5 {[%emt 0:00:00]} d4 {[%emt 0:00:00]} 40. Qxd4 {[%emt 0:00:00]} Qb1+ {[%emt 0:00:00]} 41. Kg2 {[%emt 0:07:39]} Qxb3 {[%emt 0:08:06]} 42. a6 {[%emt 0:01:30]} Qa2 {[%emt 0:00:26]} 43. Ra8 {[%emt 0:23:21]} Qc2 {[%emt 0:23:58]} 44. Qd8 {[%emt 0:00:00]} Qc6+ {[%emt 0:00:00]} 45. Kh2 {[%emt 0:00:00]} Kg6 {[%emt 0:00:00]} 46. a7 {[%emt 0:00:00]} Qf3 {[%emt 0:00:00]} 47. Qg8+ {[%emt 0:00:00]} Kf5 {[%emt 0:00:00]} 48. Qh7+ {[%emt 0:00:00]} Kg4 {[%emt 0:00:00]} 49. Rg8+ {[%emt 0:00:00]} Rg5 {[%emt 0:00:00]} 50. a8=Q {[%emt 0:00:00]} 1-0

[Event "Bangabandhu Premier Div League 2023-24"]
[Site "Dhaka"]
[Date "2024.02.08"]
[Round "8.10"]
[White "Rahman, Syed Mahfuzur"]
[Black "Chigaev, Maksim"]
[Result "0-1"]
[ECO "E01"]
[WhiteElo "2087"]
[BlackElo "2622"]
[Annotator "TA"]
[PlyCount "72"]
[EventDate "2024.02.01"]
[EventCountry "BAN"]
[SourceTitle "playchess.com"]
[Source "ChessBase"]
[SourceQuality "1"]
[TimeControl "40/5400+30:1800+30"]

{[%evp 15,72,4,5,-29,-16,-37,-37,-57,-73,-58,-65,-79,-45,-51,-72,-100,-100,-84,-66,-84,-15,-69,-68,-64,-54,-54,-53,-139,-130,-202,-201,-343,-328,-361,-331,-297,-207,-202,-210,-209,-179,-189,-170,-175,-171,-243,-250,-253,-251,-240,-257,-257,-257,-254,-244,-433,-414,-735,-688]} 1. d4 {[%emt 0:13:53]} Nf6 {[%emt 0:00:11]} 2. c4 {[%emt 0:00:32]} e6 {[%emt 0:00:14][%cal Be7e6,Be6e5][%mdl 32]} 3. g3 {[%emt 1:17:35]} c5 {[%emt 0:03:19]} 4. Nf3 {[%emt 0:00:00]} cxd4 {[%emt 0:00:15]} 5. Nxd4 {[%emt 0:00:00]} d5 {[%emt 0:00:11]} 6. Bg2 {[%emt 0:00:00]} e5 {[%emt 1:29:20]} 7. Nf3 {[%emt 0:00:00]} d4 {[%emt 0:00:00]} 8. O-O {[%emt 0:00:00]} Nc6 {[%emt 0:01:00]} 9. b4 {[%emt 0:00:00] aiming for b5.} e4 $1 {[%emt 0:00:00]} ({Don't play} 9... Bxb4 10. Nxe5 Nxe5 11. Qa4+ Nc6 12. Bxc6+ bxc6 13. Qxb4 $11) 10. Ng5 {[%emt 0:00:00]} Bxb4 {[%emt 0:00:00]} 11. Nxe4 {[%emt 0:00:00] Black is slightly better.} Nxe4 {[%emt 0:00:00]} 12. Bxe4 {[%emt 0:00:00]} Bh3 {[%emt 0:00:00]} 13. Bg2 {[%emt 0:00:00]} Qd7 {[%emt 0:02:30]} 14. Bxh3 {[%emt 0:00:00]} Qxh3 {[%emt 0:00:00]} 15. Ba3 {[%emt 0:00:00]} Bxa3 {[%emt 0:00:00]} 16. Nxa3 {[%emt 0:00:00]} h5 {[%emt 0:00:00][%cal Bh7h5,Bh5h4,Bh4h3][%mdl 32] Black has more active pieces.} 17. Qb3 {[%emt 0:00:00]} Rb8 {[%emt 0:00:00]} (17... Rh6 $17 {And now ...h4 would win.} 18. f3 O-O-O) 18. Qf3 {[%emt 0:00:00]} ({White should play} 18. c5 $11) 18... h4 $15 {[%emt 0:00:00]} 19. Qg2 {[%emt 0:00:00]} Qxg2+ {[%emt 0:00:00]} 20. Kxg2 {[%emt 0:00:00]} h3+ {[%emt 0:00:00]} 21. Kf3 {[%emt 0:09:00] [#] Black continues to play with concentration.} ({White should try} 21. Kg1 $15) 21... f5 $1 $17 {[%emt 0:04:00]} 22. Kf4 {[%emt 0:00:00] [#]} (22. Nb5 $17) 22... O-O $1 $19 {[%emt 0:00:30] Threatens to win with ...Rbe8.} 23. e3 {[%emt 0:00:00]} (23. g4 $142) 23... Rbe8 {[%emt 0:00:00] ( -> ...Re4+)} 24. Rad1 {[%emt 0:00:00]} Re4+ {[%emt 0:00:00]} 25. Kf3 {[%emt 0:00:00]} d3 {[%emt 0:01:30]} 26. Rxd3 {[%emt 0:00:28]} Ne5+ {[%emt 0:00:00]} 27. Ke2 {[%emt 0:00:01]} Nxd3 {[%emt 0:00:00]} 28. Kxd3 {[%emt 0:00:18][%mdl 4096] Endgame. KRR-KRN} Rc8 {[%emt 0:00:00]} 29. Rb1 {[%emt 0:00:13]} b6 {[%emt 0:00:00]} 30. Rc1 {[%emt 0:01:07]} (30. Rb4 {might work better.}) 30... Re5 {[%emt 0:00:00]} 31. Rc2 {[%emt 0:02:53]} a6 {[%emt 0:00:00] Prevents Nb5} 32. Rb2 {[%emt 0:00:00]} Ra5 {[%emt 0:00:00]} 33. Nc2 {[%emt 0:00:18]} b5 {[%emt 0:00:00]} 34. cxb5 {[%emt 0:00:36]} Rxb5 {[%emt 0:00:00]} 35. Rxb5 {[%emt 0:00:31]} (35. Rb3) 35... axb5 {[%emt 0:00:00]} 36. Nd4 {[%emt 0:00:02]} (36. Kd2 $142 Ra8 37. a3) 36... Ra8 {[%emt 0:00:00] Weighted Error Value: White=0.48/Black=0.11 (very precise) .  Mistake:       	White=7     	Black=1      Inaccurate:     	White=1     	Black=2      OK:         	White=7     	Black=12     Best:        	White=2     	Black=2      Strong:       	---       	Black=3} 0-1

[Event "Bangabandhu Premier Div League 2023-24"]
[Site "Dhaka"]
[Date "2024.02.08"]
[Round "8.11"]
[White "Iniyan, Pa"]
[Black "Hasan, Sk. Rashedul"]
[Result "1-0"]
[ECO "A55"]
[WhiteElo "2515"]
[BlackElo "1807"]
[Annotator "RC"]
[PlyCount "79"]
[EventDate "2024.02.01"]
[EventCountry "BAN"]
[SourceTitle "playchess.com"]
[Source "ChessBase"]
[SourceQuality "1"]
[TimeControl "40/5400+30:1800+30"]

1. d4 {[%emt 0:00:11]} Nf6 {[%emt 0:15:53]} 2. c4 {[%emt 0:00:05]} d6 {[%emt 0:00:44]} 3. Nf3 {[%emt 0:01:07]} Nbd7 {[%emt 0:00:49]} 4. Nc3 {[%emt 0:00:14]} e5 {[%emt 0:00:54]} 5. e4 {[%emt 0:00:12]} Be7 {[%emt 0:00:15]} 6. Be2 {[%emt 0:00:12]} c6 {[%emt 0:00:30]} 7. O-O {[%emt 0:00:10]} O-O {[%emt 0:01:12]} 8. Qc2 {[%emt 0:00:23]} Ne8 {[%emt 0:03:08]} 9. Rd1 {[%emt 1:32:26]} Qc7 {[%emt 0:00:26]} 10. b3 {[%emt 0:00:00]} g6 {[%emt 0:02:06]} 11. Ba3 {[%emt 0:00:00]} Ndf6 {[%emt 1:10:03]} 12. Bb2 {[%emt 0:00:00]} Nh5 {[%emt 0:00:30]} 13. g3 {[%emt 0:00:00]} Neg7 {[%emt 0:00:00]} 14. Rac1 {[%emt 0:00:00]} b6 {[%emt 0:00:00]} 15. c5 {[%emt 0:00:00]} bxc5 {[%emt 0:00:00]} 16. dxe5 {[%emt 0:00:00]} dxe5 {[%emt 0:00:00]} 17. Na4 {[%emt 0:00:00]} f6 {[%emt 0:00:00]} 18. Nxc5 {[%emt 0:00:00]} Bh3 {[%emt 0:00:00]} 19. Na6 {[%emt 0:00:00]} Qc8 {[%emt 0:00:00]} 20. Qxc6 {[%emt 0:00:00]} Qg4 {[%emt 0:00:00]} 21. Qc4+ {[%emt 0:00:00]} Kh8 {[%emt 0:00:00]} 22. Nxe5 {[%emt 0:00:00]} Qe6 {[%emt 0:00:00]} 23. Qxe6 {[%emt 0:00:00]} Bxe6 {[%emt 0:00:00]} 24. Nc6 {[%emt 0:00:00]} Bd8 {[%emt 0:00:00]} 25. Nxd8 {[%emt 0:00:00]} Raxd8 {[%emt 0:00:00]} 26. Nc7 {[%emt 0:00:00]} Bg8 {[%emt 0:00:00]} 27. f4 {[%emt 0:00:00]} h6 {[%emt 0:00:00]} 28. Kf2 {[%emt 0:00:00]} Kh7 {[%emt 0:00:00]} 29. Rxd8 {[%emt 0:00:00]} Rxd8 {[%emt 0:00:00]} 30. Rd1 {[%emt 0:00:00]} Rc8 {[%emt 0:00:00]} 31. Rd7 {[%emt 0:00:00]} a5 {[%emt 0:00:00]} 32. Bxh5 {[%emt 0:11:30]} Rf8 {[%emt 0:00:00]} 33. Be2 {[%emt 0:00:00]} h5 {[%emt 0:00:00]} 34. e5 {[%emt 0:00:00]} Kh6 {[%emt 0:00:00]} 35. exf6 {[%emt 0:01:30]} Ne6 {[%emt 0:02:00]} 36. Nxe6 {[%emt 0:00:00]} Bxe6 {[%emt 0:00:23]} 37. Re7 {[%emt 0:00:00]} Bf5 {[%emt 0:10:07]} 38. f7 {[%emt 0:00:00]} g5 {[%emt 0:00:00]} 39. Bc4 {[%emt 0:00:00]} gxf4 {[%emt 0:00:00]} 40. Re8 {[%emt 0:00:00]} 1-0

[Event "Bangabandhu Premier Div League 2023-24"]
[Site "Dhaka"]
[Date "2024.02.08"]
[Round "8.12"]
[White "Mihir Lal, Das"]
[Black "Anata, Choudhury"]
[Result "0-1"]
[ECO "A37"]
[WhiteElo "1936"]
[BlackElo "2196"]
[Annotator "TA"]
[PlyCount "120"]
[EventDate "2024.02.01"]
[EventCountry "BAN"]
[SourceTitle "playchess.com"]
[Source "ChessBase"]
[SourceQuality "1"]
[TimeControl "40/5400+30:1800+30"]

{[%evp 18,120,0,0,0,0,0,-25,-14,-51,-48,-50,-47,-56,-36,-41,-26,-37,-42,-54,-39,-37,-39,-41,-45,-40,-45,-47,-43,-99,-66,-152,-94,-234,-222,-247,-234,-209,-215,-229,-215,-205,-200,-221,-168,-168,-148,-133,-150,-142,-142,-149,-123,-126,-118,-118,-105,-106,-110,-120,-126,-151,-141,-149,-38,-149,-127,-149,-68,-119,-112,-106,-60,-60,-35,-35,0,0,0,0,0,0,0,0,0,0,0,0,0,0,0,0,0,0,0,0,0,0,0,0,0,-29981,-29982,-29982,-29983]} 1. Nf3 {[%emt 0:00:04]} c5 {[%emt 0:00:26]} 2. g3 {[%emt 0:00:03]} g6 {[%emt 0:00:15]} 3. Bg2 {[%emt 0:00:02]} Bg7 {[%emt 0:00:12]} 4. c4 {[%emt 0:00:47]} Nc6 {[%emt 0:00:16]} 5. Nc3 {[%emt 0:00:05]} e5 {[%emt 0:00:17]} 6. O-O {[%emt 0:00:57]} Nge7 {[%emt 0:00:09]} 7. Rb1 {[%emt 0:02:23]} d6 {[%emt 0:01:13]} 8. a3 {[%emt 0:00:45]} a5 {[%emt 0:00:13]} 9. e3 {[%emt 0:02:01]} O-O {[%emt 0:00:15]} 10. d3 {[%emt 0:04:36]} h6 {[%emt 0:01:32]} 11. Ne1 {[%emt 0:02:56]} Be6 {[%emt 0:00:13]} 12. Nd5 {[%emt 0:00:57]} Rb8 {Black has an edge.} 13. Nxe7+ {[%emt 0:14:35]} Nxe7 14. b4 b5 15. cxb5 axb4 {[%emt 0:40:54]} 16. axb4 {[%emt 0:31:43]} Rxb5 {[%emt 0:00:15]} 17. Bd2 {[%emt 0:00:20]} cxb4 {[%emt 0:01:38]} 18. Rxb4 {[%emt 0:00:48]} Rxb4 {[%emt 0:00:43]} 19. Bxb4 {[%emt 0:00:02]} Qb6 {[%emt 0:00:23]} 20. Qd2 Rc8 {[%emt 0:06:44]} 21. Nf3 {[%emt 0:11:10]} Nd5 {[%emt 0:01:26]} 22. Ba5 {[%emt 0:03:03]} Qb3 {[%emt 0:01:03]} 23. Ne1 (23. e4 $15 Nf6 24. Ra1) 23... Nc3 {[%emt 0:08:50][%cal Oe5e4] Black has more active pieces.} 24. Bf3 {[%emt 0:14:39] [#]} (24. Nf3 $15) 24... d5 {[%emt 0:03:10]} ({Black should try} 24... e4 $1 {[%cal Re4f3]} 25. dxe4 Bc4 26. Bxc3 Bxc3) 25. d4 (25. Bxc3 $17 Rxc3 26. h4) 25... Ne4 $19 {[%emt 0:18:19]} 26. Bxe4 {[%emt 0:05:45]} dxe4 {[%emt 0:00:08]} 27. d5 {[%emt 0:00:15] White is weak on the light squares} Bxd5 {[%emt 0:01:38] aiming for ...Bc4.} 28. Ng2 {[%emt 0:00:13]} Rc2 29. Qb4 {[%emt 0:04:00]} Qa2 {[%emt 0:02:34]} 30. Qb1 {[%emt 0:00:19]} Bc4 31. Rc1 {[%emt 0:01:10]} Rxf2 {[%emt 0:03:49]} 32. Qxa2 {[%emt 0:00:25]} Rxa2 {[%emt 0:00:08]} 33. Rxc4 {[%emt 0:00:18]} Rxa5 {[%emt 0:00:08]} 34. Rxe4 {[%emt 0:00:27][%mdl 4096] Endgame. KRB-KRN} Ra1+ {[%emt 0:04:39]} 35. Kf2 {[%emt 0:00:04]} Ra2+ {[%emt 0:00:04]} 36. Kf1 {[%emt 0:00:20]} h5 {[%emt 0:01:01]} 37. h3 {[%emt 0:00:36]} Bf6 {[%emt 0:03:46]} 38. Rc4 {[%emt 0:00:52]} Kg7 39. Rc6 {[%emt 0:01:32]} Ra1+ {[%emt 0:02:46]} 40. Kf2 {[%emt 0:00:45]} g5 {[%emt 0:00:23]} (40... Be7 $17 41. Rc2 Bd6) 41. Ne1 {[%emt 0:05:17]} (41. e4 $1 $15) 41... Ra2+ {[%emt 0:04:01]} 42. Rc2 {[%emt 0:00:03]} Ra3 {[%emt 0:00:52]} (42... Rxc2+ $17 43. Nxc2 e4) 43. Rc4 (43. Nf3 $15) 43... Bd8 $17 44. g4 {[%emt 0:05:34]} hxg4 {[%emt 0:07:16]} ({Better is} 44... Ra2+ $17 45. Nc2 f6 46. gxh5 Kh6) 45. hxg4 $15 {[%emt 0:00:02]} Ra2+ {[%emt 0:01:26]} 46. Kf3 {[%emt 0:23:37]} Rh2 {[%emt 0:02:14]} 47. Ke4 {[%emt 0:00:00]} Bf6 {[%emt 0:03:31]} 48. Nf3 {[%emt 0:00:00]} Rh3 {[%emt 0:00:49]} 49. Nxe5 {[%emt 0:00:00]} Rg3 {[%emt 0:00:59]} 50. Rc7 {[%emt 0:00:00]} Bxe5 {[%emt 0:00:19]} 51. Kxe5 {[%emt 0:00:00]} Rxg4 $11 {[%emt 0:00:19] KR-KR} 52. Kf5 {[%emt 0:00:00]} Rg1 {[%emt 0:00:26]} 53. e4 {[%emt 0:00:00]} g4 {[%emt 0:00:20]} 54. Kf4 {[%emt 0:00:00]} Kg6 {[%emt 0:02:14]} 55. Rc8 {[%emt 0:00:00]} Kg7 {[%emt 0:02:34]} 56. Rc3 {[%emt 0:00:00]} Kf6 {[%emt 0:00:39]} 57. Rc6+ {[%emt 0:00:00]} Ke7 {[%emt 0:00:06]} 58. Rc3 {[%emt 0:00:52]} Kd6 {[%emt 0:00:44]} 59. Rg3 $2 {[%emt 0:00:43][%mdl 8192] [#]} (59. Rd3+ $11 Ke6 60. Rb3) 59... Rxg3 {[%emt 0:00:41]} 60. Kxg3 {[%emt 0:00:15]} Ke5 {[%emt 0:11:30] Weighted Error Value: White=0.32/Black=0.16 (very precise) .  Loses game:     	White=1     	---        Mistake:       	White=5     	Black=4      Inaccurate:     	White=1     	Black=2      OK:         	White=23    	Black=16     Best:        	White=5     	Black=1} 0-1

[Event "Bangabandhu Premier Div League 2023-24"]
[Site "Dhaka"]
[Date "2024.02.09"]
[Round "9.1"]
[White "Rathanvel, V S"]
[Black "Hossain, Enamul"]
[Result "1/2-1/2"]
[ECO "B30"]
[WhiteElo "2474"]
[BlackElo "2372"]
[Annotator "TA"]
[PlyCount "74"]
[EventDate "2024.02.01"]
[EventCountry "BAN"]
[SourceTitle "playchess.com"]
[Source "ChessBase"]
[SourceQuality "1"]
[TimeControl "40/5400+30:1800+30"]

{[%evp 11,74,29,21,14,36,28,31,30,25,29,35,15,21,25,27,19,18,22,30,0,16,0,33,37,69,47,53,53,58,53,66,63,62,70,77,64,130,127,128,134,144,121,133,118,129,128,122,118,127,125,122,130,126,62,87,95,118,106,103,59,79,70,62,69,123]} 1. e4 {[%emt 1:31:00]} c5 {[%emt 0:00:40]} 2. Nf3 Nc6 {[%emt 0:00:19]} 3. Bb5 {[%emt 0:00:00]} e6 {[%emt 0:00:16]} 4. O-O {[%emt 0:00:00]} Nge7 {[%emt 0:00:17]} 5. d4 cxd4 {[%emt 0:00:18]} 6. Nxd4 {[%emt 0:00:00]} Qb6 7. Nxc6 {[%emt 0:00:00]} bxc6 {[%emt 0:01:40]} 8. Be2 {[%emt 0:00:00]} Ng6 {[%emt 0:00:22]} 9. c4 {[%emt 0:00:00]} Be7 {[%emt 0:00:25]} 10. Nc3 {[%emt 0:00:00]} O-O {[%emt 0:00:46]} 11. Rb1 {[%emt 0:00:00]} Qc7 12. Be3 {[%emt 0:00:00]} Rd8 13. Qc1 {[%emt 0:00:00]} c5 {[%emt 0:20:40]} 14. f4 {[%emt 0:00:00]} Bb7 {[%emt 0:00:30]} 15. g3 d6 16. Bf3 {[%emt 0:07:30]} Bf6 {[%emt 1:12:17]} 17. b4 {[%emt 0:00:30]} cxb4 {[%emt 0:00:00]} 18. Rxb4 {[%emt 0:00:30]} Bxc3 {[%emt 0:00:00]} 19. Qxc3 {[%emt 0:00:00]} e5 {[%emt 0:01:30]} 20. Rfb1 {[%emt 0:00:00]} Bc6 {[%emt 0:00:30]} 21. f5 {[%emt 0:01:30]} Nf8 {[%emt 0:00:30]} 22. c5 {[%emt 0:00:30]} dxc5 {[%emt 0:00:00]} 23. Qxc5 {[%emt 0:00:30]} Qd6 {[%emt 0:00:00]} (23... Nd7 $14 24. Qc3 Nb6) 24. Qxd6 $16 {[%emt 0:00:00]} Rxd6 {[%emt 0:00:00]} 25. Rb8 {[%emt 0:00:00]} Rd3 {[%emt 0:02:00]} 26. Bc5 {[%emt 0:00:00] [#] aiming for Rxa8. White is more active. A strong pair of Bishops.} Rd8 {[%emt 0:00:00]} (26... Rxf3 $2 {loses.} 27. Rxa8 Bxa8 28. Rb8 $18 (28. Bxa7 $2 Bxe4 29. Rb8 Rc3 $19)) 27. Rxd8 {[%emt 0:00:00]} Rxd8 {[%emt 0:00:00]} 28. Bxa7 {[%emt 0:00:00]} Ra8 {[%emt 0:00:00]} 29. Bc5 {[%emt 0:00:00]} Nd7 {[%emt 0:00:00]} 30. Bd6 {[%emt 0:00:00]} h6 {[%emt 0:02:30]} 31. Rc1 {[%emt 0:04:00]} Ra6 {[%emt 0:00:00][%cal Od7f6]} 32. Bc7 {[%emt 0:00:30]} (32. Bb4 $16) 32... Nf6 {[%emt 0:00:00]} 33. Rc4 {[%emt 0:00:30]} ({Resist} 33. Bxe5 Bxe4 34. Bxe4 Nxe4 $14) 33... Ra3 {[%emt 0:00:00]} 34. Rxc6 {[%emt 0:00:00]} Rxf3 {[%emt 0:00:00]} 35. a4 {[%emt 0:00:46][%cal Ba2a4,Ba4a5,Ba5a6][%mdl 32]} Nxe4 {[%emt 0:02:30]} 36. a5 {[%emt 0:00:44] [#] Black must now prevent a6.} Ra3 {[%emt 0:00:30]} 37. a6 {[%emt 0:00:30]} ({Much worse is} 37. Bxe5 Rxa5 38. Rc8+ Kh7 $11) 37... Ng5 {[%emt 0:00:30] Weighted Error Value: White=0.07 (flawless) /Black=0.09 (flawless) .  Mistake:       	White=1     	Black=2      Inaccurate:     	White=2     	Black=2      OK:         	White=15    	Black=10     Best:        	White=2     	Black=2} (37... f6 $14) 1/2-1/2